[Event "*** SCC Grand Prix: Titled Tuesday Blitz"]
[Site "Chess.com"]
[Date "2020.07.07"]
[Round "2"]
[White "CarlosAlbornoz"]
[Black "regular_legs"]
[Result "1-0"]
[WhiteElo "2798"]
[BlackElo "2526"]
[TimeControl "180+1"]
[EndTime "10:19:16 PDT"]
[Termination "CarlosAlbornoz won by resignation"]

1. e4 {[%clk 0:03:00.9]} 1... c6 {[%clk 0:02:59.4]} 2. d4 {[%clk 0:03:00.6]}
2... d5 {[%clk 0:03:00.3]} 3. e5 {[%clk 0:03:01.1]} 3... Bf5 {[%clk 0:03:00.1]}
4. Nf3 {[%clk 0:03:01]} 4... e6 {[%clk 0:02:59.9]} 5. Be2 {[%clk 0:03:01.4]}
5... Ne7 {[%clk 0:02:59.8]} 6. O-O {[%clk 0:03:01.8]} 6... Ng6 {[%clk
0:02:59.8]} 7. c3 {[%clk 0:03:00.8]} 7... Nd7 {[%clk 0:02:57.7]} 8. Ne1 {[%clk
0:02:58.3]} 8... h5 {[%clk 0:02:55.8]} 9. Bd3 {[%clk 0:02:54.4]} 9... Bxd3
{[%clk 0:02:42.2]} 10. Nxd3 {[%clk 0:02:55.3]} 10... c5 {[%clk 0:02:43]} 11. f4
{[%clk 0:02:47]} 11... Nh4 {[%clk 0:02:32.2]} 12. Be3 {[%clk 0:02:40.5]} 12...
Nf5 {[%clk 0:02:31.4]} 13. Bf2 {[%clk 0:02:40.6]} 13... c4 {[%clk 0:02:17.3]}
14. Ne1 {[%clk 0:02:37.2]} 14... b5 {[%clk 0:02:18.2]} 15. Nc2 {[%clk 0:02:35]}
15... a5 {[%clk 0:02:11.6]} 16. Ne3 {[%clk 0:02:29.8]} 16... g6 {[%clk
0:02:11.2]} 17. Nd2 {[%clk 0:02:26.5]} 17... b4 {[%clk 0:02:08.7]} 18. Nxf5
{[%clk 0:02:21.7]} 18... gxf5 {[%clk 0:02:08.4]} 19. Nf3 {[%clk 0:02:22.6]}
19... Be7 {[%clk 0:02:07.8]} 20. b3 {[%clk 0:02:13.9]} 20... Nb6 {[%clk
0:02:01.8]} 21. Rc1 {[%clk 0:02:04]} 21... Qd7 {[%clk 0:01:41.4]} 22. Kh1 {[%clk
0:02:03]} 22... O-O-O {[%clk 0:01:36.4]} 23. bxc4 {[%clk 0:01:51.3]} 23... Nxc4
{[%clk 0:01:29.8]} 24. Nd2 {[%clk 0:01:47.7]} 24... Nxd2 {[%clk 0:01:28.5]} 25.
Qxd2 {[%clk 0:01:48.6]} 25... Kb8 {[%clk 0:01:26.2]} 26. cxb4 {[%clk 0:01:46]}
26... axb4 {[%clk 0:01:23.8]} 27. a3 {[%clk 0:01:32.5]} 27... Rc8 {[%clk
0:01:22.6]} 28. axb4 {[%clk 0:01:28]} 28... Rxc1 {[%clk 0:01:20.8]} 29. Rxc1
{[%clk 0:01:28.9]} 29... Rc8 {[%clk 0:01:21.2]} 30. Ra1 {[%clk 0:01:26.6]} 30...
Qb7 {[%clk 0:01:09.1]} 31. Be1 {[%clk 0:01:16]} 31... Rc4 {[%clk 0:01:08.1]} 32.
Qa2 {[%clk 0:01:01.2]} 32... Rxd4 {[%clk 0:00:54.7]} 33. Bf2 {[%clk 0:00:58.1]}
33... Rxb4 {[%clk 0:00:46.7]} 34. Bg1 {[%clk 0:00:41.7]} 34... Rxf4 {[%clk
0:00:32.1]} 35. Qe2 {[%clk 0:00:22.4]} 35... h4 {[%clk 0:00:29]} 36. Qh5 {[%clk
0:00:22]} 36... Rc4 {[%clk 0:00:23.6]} 37. Qxf7 {[%clk 0:00:20.8]} 37... h3
{[%clk 0:00:23.3]} 38. Qe8+ {[%clk 0:00:13]} 38... Rc8 {[%clk 0:00:22.7]} 39.
Ba7+ {[%clk 0:00:11.7]} 39... Qxa7 {[%clk 0:00:10.7]} 40. Qxc8+ {[%clk
0:00:11.8]} 40... Kxc8 {[%clk 0:00:11.6]} 41. Rxa7 {[%clk 0:00:12.2]} 41...
hxg2+ {[%clk 0:00:12.1]} 42. Kxg2 {[%clk 0:00:12.8]} 42... Bg5 {[%clk
0:00:12.1]} 43. Kf3 {[%clk 0:00:10]} 43... Kd8 {[%clk 0:00:12.1]} 44. Rh7 {[%clk
0:00:09.6]} 44... Ke8 {[%clk 0:00:12.2]} 45. h4 {[%clk 0:00:09.7]} 45... Bc1
{[%clk 0:00:12.2]} 46. h5 {[%clk 0:00:10]} 46... Kf8 {[%clk 0:00:12.6]} 47. Rc7
{[%clk 0:00:09.2]} 47... Bd2 {[%clk 0:00:12.2]} 48. Rc6 {[%clk 0:00:05.9]} 48...
Kf7 {[%clk 0:00:11.8]} 49. Rc7+ {[%clk 0:00:06.1]} 49... Kg8 {[%clk 0:00:11.9]}
50. Re7 {[%clk 0:00:06]} 50... d4 {[%clk 0:00:10.1]} 51. Rxe6 {[%clk 0:00:06]}
51... Kg7 {[%clk 0:00:10.7]} 52. Rf6 {[%clk 0:00:06.1]} 52... Bg5 {[%clk
0:00:09.4]} 53. Rg6+ {[%clk 0:00:06]} 53... Kh7 {[%clk 0:00:09.5]} 54. Rxg5
{[%clk 0:00:06.9]} 1-0

[Event "*** SCC Grand Prix: Titled Tuesday Blitz"]
[Site "Chess.com"]
[Date "2020.07.07"]
[Round "2"]
[White "Agent-JL"]
[Black "ZiggyStardust64"]
[Result "0-1"]
[WhiteElo "2470"]
[BlackElo "2674"]
[TimeControl "180+1"]
[EndTime "10:19:16 PDT"]
[Termination "ZiggyStardust64 won on time"]

1. d4 {[%clk 0:03:00.9]} 1... e6 {[%clk 0:02:59.7]} 2. c4 {[%clk 0:02:55.4]}
2... Nf6 {[%clk 0:02:59.4]} 3. Nf3 {[%clk 0:02:54.7]} 3... Bb4+ {[%clk
0:02:59.4]} 4. Nbd2 {[%clk 0:02:51.7]} 4... O-O {[%clk 0:02:56.3]} 5. e3 {[%clk
0:02:46.8]} 5... d5 {[%clk 0:02:53.6]} 6. Bd3 {[%clk 0:02:43.6]} 6... dxc4
{[%clk 0:02:52.6]} 7. Bxc4 {[%clk 0:02:44.5]} 7... a6 {[%clk 0:02:50.6]} 8. O-O
{[%clk 0:02:42.6]} 8... b5 {[%clk 0:02:50.9]} 9. Bd3 {[%clk 0:02:40.5]} 9... Bb7
{[%clk 0:02:50.8]} 10. a3 {[%clk 0:02:38.7]} 10... Be7 {[%clk 0:02:50.2]} 11. b4
{[%clk 0:02:37.5]} 11... a5 {[%clk 0:02:17.8]} 12. bxa5 {[%clk 0:02:28.7]} 12...
c5 {[%clk 0:02:06.3]} 13. Bxb5 {[%clk 0:02:26.8]} 13... Qxa5 {[%clk 0:02:05.2]}
14. a4 {[%clk 0:02:25.4]} 14... cxd4 {[%clk 0:02:04.1]} 15. Nxd4 {[%clk
0:02:22.9]} 15... Rd8 {[%clk 0:02:00.5]} 16. Nc4 {[%clk 0:02:18.4]} 16... Qc7
{[%clk 0:01:58.3]} 17. Qb3 {[%clk 0:02:14.6]} 17... Nbd7 {[%clk 0:01:54.9]} 18.
Ba3 {[%clk 0:02:04]} 18... Nc5 {[%clk 0:01:54.1]} 19. Bxc5 {[%clk 0:01:56]}
19... Bxc5 {[%clk 0:01:55]} 20. Ne2 {[%clk 0:01:51.4]} 20... Ne4 {[%clk
0:01:45.6]} 21. Ng3 {[%clk 0:01:44]} 21... Nxg3 {[%clk 0:01:28]} 22. hxg3 {[%clk
0:01:44.9]} 22... Bd5 {[%clk 0:01:28]} 23. Qc2 {[%clk 0:01:22.5]} 23... Qb7
{[%clk 0:01:24.9]} 24. f3 {[%clk 0:01:14.1]} 24... Rac8 {[%clk 0:00:49]} 25. Qe2
{[%clk 0:01:06.5]} 25... Qa7 {[%clk 0:00:40.3]} 26. Kf2 {[%clk 0:01:03.3]} 26...
Bxc4 {[%clk 0:00:39.1]} 27. Bxc4 {[%clk 0:01:00.5]} 27... Bxe3+ {[%clk
0:00:17.8]} 28. Qxe3 {[%clk 0:01:00.8]} 28... Rd2+ {[%clk 0:00:17.7]} 29. Be2
{[%clk 0:01:00.5]} 29... Rxe2+ {[%clk 0:00:18]} 30. Kxe2 {[%clk 0:00:57.8]}
30... Rc2+ {[%clk 0:00:18.3]} 31. Qd2 {[%clk 0:00:54.4]} 31... Qa6+ {[%clk
0:00:15.7]} 32. Ke3 {[%clk 0:00:44.7]} 32... Rxd2 {[%clk 0:00:14.1]} 33. Kxd2
{[%clk 0:00:45.6]} 33... h5 {[%clk 0:00:13.4]} 34. Rfb1 {[%clk 0:00:41.3]} 34...
Qd6+ {[%clk 0:00:13.2]} 35. Ke2 {[%clk 0:00:40.1]} 35... Qxg3 {[%clk 0:00:13.1]}
36. Kf1 {[%clk 0:00:40.8]} 36... Qg6 {[%clk 0:00:08.4]} 37. Rb3 {[%clk
0:00:36.1]} 37... Qc2 {[%clk 0:00:08.2]} 38. Rb8+ {[%clk 0:00:32.7]} 38... Kh7
{[%clk 0:00:07.4]} 39. Rbb1 {[%clk 0:00:30.2]} 39... Qc4+ {[%clk 0:00:07.1]} 40.
Kg1 {[%clk 0:00:30.4]} 40... Qd4+ {[%clk 0:00:07.7]} 41. Kh2 {[%clk 0:00:29.4]}
41... Qh4+ {[%clk 0:00:07.9]} 42. Kg1 {[%clk 0:00:30]} 42... Qd4+ {[%clk
0:00:08.6]} 43. Kf1 {[%clk 0:00:30.7]} 43... Qd3+ {[%clk 0:00:08.8]} 44. Kf2
{[%clk 0:00:31.4]} 44... Qd2+ {[%clk 0:00:09]} 45. Kf1 {[%clk 0:00:29.5]} 45...
h4 {[%clk 0:00:08.7]} 46. Ra3 {[%clk 0:00:23.6]} 46... Qc2 {[%clk 0:00:08]} 47.
Rab3 {[%clk 0:00:17.3]} 47... Qc4+ {[%clk 0:00:07.7]} 48. Kg1 {[%clk 0:00:18]}
48... Qxa4 {[%clk 0:00:08]} 49. Rb4 {[%clk 0:00:18.5]} 49... Qa7+ {[%clk
0:00:07.6]} 50. Kh1 {[%clk 0:00:18.9]} 50... Qf2 {[%clk 0:00:07.8]} 51. Rf4
{[%clk 0:00:14.7]} 51... f6 {[%clk 0:00:05.8]} 52. Rg4 {[%clk 0:00:07.6]} 52...
Kh6 {[%clk 0:00:04.6]} 0-1

[Event "*** SCC Grand Prix: Titled Tuesday Blitz"]
[Site "Chess.com"]
[Date "2020.07.07"]
[Round "2"]
[White "SavelievAlexei"]
[Black "Margarita2907"]
[Result "0-1"]
[WhiteElo "2379"]
[BlackElo "2099"]
[TimeControl "180+1"]
[EndTime "10:19:16 PDT"]
[Termination "Margarita2907 won on time"]

1. e4 {[%clk 0:03:00.9]} 1... c5 {[%clk 0:02:59.5]} 2. Nf3 {[%clk 0:03:00.5]}
2... d6 {[%clk 0:02:58.6]} 3. d4 {[%clk 0:02:58.5]} 3... cxd4 {[%clk 0:02:59.1]}
4. Nxd4 {[%clk 0:02:59.4]} 4... Nf6 {[%clk 0:02:59.4]} 5. Nc3 {[%clk 0:03:00]}
5... a6 {[%clk 0:02:59.1]} 6. Be2 {[%clk 0:02:57.9]} 6... e5 {[%clk 0:02:58.2]}
7. Nb3 {[%clk 0:02:58.4]} 7... Be7 {[%clk 0:02:56.7]} 8. Be3 {[%clk 0:02:58.8]}
8... O-O {[%clk 0:02:48.3]} 9. g4 {[%clk 0:02:58.8]} 9... Nc6 {[%clk 0:02:27.7]}
10. g5 {[%clk 0:02:58.5]} 10... Ne8 {[%clk 0:02:27]} 11. h4 {[%clk 0:02:59]}
11... Be6 {[%clk 0:02:23.9]} 12. Bg4 {[%clk 0:02:58.3]} 12... Qc8 {[%clk
0:02:16.2]} 13. Bxe6 {[%clk 0:02:57.3]} 13... Qxe6 {[%clk 0:02:15.3]} 14. Nd5
{[%clk 0:02:56.3]} 14... f5 {[%clk 0:02:03.2]} 15. gxf6 {[%clk 0:02:55.9]} 15...
Bxf6 {[%clk 0:02:01.3]} 16. Qd2 {[%clk 0:02:52.5]} 16... Ne7 {[%clk 0:01:52.1]}
17. O-O-O {[%clk 0:02:39.7]} 17... Nxd5 {[%clk 0:01:46.5]} 18. exd5 {[%clk
0:02:40.6]} 18... Qd7 {[%clk 0:01:43.8]} 19. f4 {[%clk 0:02:27.2]} 19... exf4
{[%clk 0:01:41]} 20. Bxf4 {[%clk 0:02:28.1]} 20... Nc7 {[%clk 0:01:36.6]} 21.
Qb4 {[%clk 0:01:35.4]} 21... Nb5 {[%clk 0:01:11.4]} 22. a4 {[%clk 0:01:33.6]}
22... Nc7 {[%clk 0:00:51.8]} 23. Qxd6 {[%clk 0:01:33.2]} 23... Qxd6 {[%clk
0:00:45.8]} 24. Bxd6 {[%clk 0:01:32.6]} 24... Rfc8 {[%clk 0:00:45.6]} 25. h5
{[%clk 0:00:44.6]} 25... Ne8 {[%clk 0:00:41]} 26. Ba3 {[%clk 0:00:44.3]} 26...
Rd8 {[%clk 0:00:39.6]} 27. c4 {[%clk 0:00:39]} 27... Rac8 {[%clk 0:00:38.8]} 28.
c5 {[%clk 0:00:39.2]} 28... Nd6 {[%clk 0:00:26.7]} 29. Kb1 {[%clk 0:00:24.5]}
29... Nc4 {[%clk 0:00:25.6]} 30. Bb4 {[%clk 0:00:20.1]} 30... Ne3 {[%clk
0:00:18.3]} 31. d6 {[%clk 0:00:19.3]} 31... Nxd1 {[%clk 0:00:17.3]} 32. Rxd1
{[%clk 0:00:20.2]} 32... Rd7 {[%clk 0:00:16.6]} 33. Na5 {[%clk 0:00:18.4]} 33...
Re8 {[%clk 0:00:15.3]} 34. Nc4 {[%clk 0:00:13.4]} 34... Re4 {[%clk 0:00:09.1]}
35. Nb6 {[%clk 0:00:12.6]} 35... Rd8 {[%clk 0:00:08.8]} 36. Ba3 {[%clk
0:00:06.7]} 36... Re2 {[%clk 0:00:06.4]} 37. Nd5 {[%clk 0:00:06.2]} 37... Be5
{[%clk 0:00:05.1]} 38. Nc7 {[%clk 0:00:03.5]} 38... Rh2 {[%clk 0:00:04.7]} 39.
d7 {[%clk 0:00:02]} 39... Bxc7 {[%clk 0:00:03.3]} 40. c6 {[%clk 0:00:02]} 40...
bxc6 {[%clk 0:00:02.4]} 41. Be7 {[%clk 0:00:02.4]} 41... Rxd7 {[%clk 0:00:01.6]}
42. Rxd7 {[%clk 0:00:01.3]} 42... Bf4 {[%clk 0:00:02.1]} 0-1

[Event "*** SCC Grand Prix: Titled Tuesday Blitz"]
[Site "Chess.com"]
[Date "2020.07.07"]
[Round "2"]
[White "H3nriqueTV"]
[Black "Chesswizard_2007"]
[Result "0-1"]
[WhiteElo "2233"]
[BlackElo "2453"]
[TimeControl "180+1"]
[EndTime "10:19:19 PDT"]
[Termination "Chesswizard_2007 won by resignation"]

1. e4 {[%clk 0:03:00.7]} 1... c5 {[%clk 0:02:57]} 2. Nf3 {[%clk 0:02:58.5]} 2...
d6 {[%clk 0:02:57.4]} 3. Nc3 {[%clk 0:02:57]} 3... Nf6 {[%clk 0:02:57.2]} 4. d3
{[%clk 0:02:54.6]} 4... Nc6 {[%clk 0:02:56.5]} 5. g3 {[%clk 0:02:53.3]} 5... a6
{[%clk 0:02:52.4]} 6. Bg2 {[%clk 0:02:52.4]} 6... g6 {[%clk 0:02:49]} 7. O-O
{[%clk 0:02:38.1]} 7... Bg7 {[%clk 0:02:31.3]} 8. h3 {[%clk 0:02:35.1]} 8... O-O
{[%clk 0:02:31.1]} 9. Be3 {[%clk 0:02:35.1]} 9... Bd7 {[%clk 0:02:27.6]} 10. Qd2
{[%clk 0:02:35.1]} 10... b5 {[%clk 0:02:26.1]} 11. Bh6 {[%clk 0:02:34.6]} 11...
e5 {[%clk 0:02:20.5]} 12. Bxg7 {[%clk 0:02:34.2]} 12... Kxg7 {[%clk 0:02:20.5]}
13. Nh2 {[%clk 0:02:30.1]} 13... Qc8 {[%clk 0:02:16.6]} 14. g4 {[%clk
0:02:25.1]} 14... h5 {[%clk 0:02:15.3]} 15. f4 {[%clk 0:01:26.4]} 15... hxg4
{[%clk 0:02:10.5]} 16. fxe5 {[%clk 0:01:26.3]} 16... Nh5 {[%clk 0:01:56.9]} 17.
Nd5 {[%clk 0:01:07.1]} 17... gxh3 {[%clk 0:01:50.9]} 18. Bf3 {[%clk 0:01:06.7]}
18... Ng3 {[%clk 0:01:43.7]} 19. Qg5 {[%clk 0:00:55.9]} 19... Nxf1 {[%clk
0:01:38.4]} 20. Qf6+ {[%clk 0:00:55.4]} 20... Kg8 {[%clk 0:01:27.8]} 21. Rxf1
{[%clk 0:00:42.8]} 21... Qd8 {[%clk 0:01:19.8]} 22. Qxd6 {[%clk 0:00:29]} 22...
Qg5+ {[%clk 0:01:02.2]} 23. Kh1 {[%clk 0:00:28.1]} 23... Rad8 {[%clk 0:00:55.8]}
24. Nf6+ {[%clk 0:00:26.8]} 24... Kg7 {[%clk 0:00:52.4]} 25. Nxd7 {[%clk
0:00:26.9]} 25... Rxd7 {[%clk 0:00:44.6]} 26. Qxd7 {[%clk 0:00:26.1]} 26... Nxe5
{[%clk 0:00:44.7]} 27. Qxh3 {[%clk 0:00:19.8]} 27... Rh8 {[%clk 0:00:42.8]} 28.
Qg2 {[%clk 0:00:20.1]} 28... Qf4 {[%clk 0:00:22.9]} 29. Bd1 {[%clk 0:00:19.1]}
29... Rxh2+ {[%clk 0:00:21.6]} 30. Qxh2 {[%clk 0:00:17.9]} 30... Qxf1+ {[%clk
0:00:21.1]} 31. Qg1 {[%clk 0:00:18.8]} 31... Qh3+ {[%clk 0:00:21]} 32. Qh2
{[%clk 0:00:18.8]} 32... Qf1+ {[%clk 0:00:21.1]} 33. Qg1 {[%clk 0:00:19.1]}
33... Qxg1+ {[%clk 0:00:20.9]} 34. Kxg1 {[%clk 0:00:19.2]} 34... Kf6 {[%clk
0:00:17]} 35. Kf2 {[%clk 0:00:19.5]} 35... Nc6 {[%clk 0:00:16]} 36. c3 {[%clk
0:00:18.1]} 36... Ke5 {[%clk 0:00:16.4]} 37. Ke3 {[%clk 0:00:17.6]} 37... b4
{[%clk 0:00:15.4]} 38. Bb3 {[%clk 0:00:17.2]} 38... f6 {[%clk 0:00:14.5]} 39.
Bd5 {[%clk 0:00:14.8]} 39... bxc3 {[%clk 0:00:14.6]} 40. bxc3 {[%clk 0:00:13.4]}
40... Ne7 {[%clk 0:00:15.2]} 41. d4+ {[%clk 0:00:13.6]} 41... Kd6 {[%clk
0:00:15.8]} 42. Bf7 {[%clk 0:00:13.2]} 42... a5 {[%clk 0:00:11.2]} 43. Kf4
{[%clk 0:00:10.8]} 43... g5+ {[%clk 0:00:10.8]} 44. Kg4 {[%clk 0:00:10]} 44...
cxd4 {[%clk 0:00:08.2]} 45. cxd4 {[%clk 0:00:09.8]} 45... Nc6 {[%clk 0:00:09.1]}
46. Kf5 {[%clk 0:00:08.5]} 46... Ke7 {[%clk 0:00:05.7]} 47. Bd5 {[%clk
0:00:07.2]} 47... Nxd4+ {[%clk 0:00:05.8]} 48. Kg4 {[%clk 0:00:08.1]} 48... Kd6
{[%clk 0:00:06.1]} 49. Kh5 {[%clk 0:00:07.1]} 49... Ke5 {[%clk 0:00:07]} 50. Kg6
{[%clk 0:00:07.5]} 50... Ne2 {[%clk 0:00:07.5]} 51. Kh5 {[%clk 0:00:07.3]} 51...
Nc3 {[%clk 0:00:08.4]} 52. Bb7 {[%clk 0:00:07]} 52... a4 {[%clk 0:00:08.6]} 53.
a3 {[%clk 0:00:06.6]} 53... Nb5 {[%clk 0:00:08.7]} 54. Bc6 {[%clk 0:00:06.3]}
54... Nc3 {[%clk 0:00:09.6]} 55. Bxa4 {[%clk 0:00:07.2]} 55... Nxa4 {[%clk
0:00:09.9]} 0-1

[Event "*** SCC Grand Prix: Titled Tuesday Blitz"]
[Site "Chess.com"]
[Date "2020.07.07"]
[Round "2"]
[White "CroissantNeuf"]
[Black "Bhagya_2312"]
[Result "1-0"]
[WhiteElo "2409"]
[BlackElo "2124"]
[TimeControl "180+1"]
[EndTime "10:19:19 PDT"]
[Termination "CroissantNeuf won on time"]

1. e4 {[%clk 0:03:00.8]} 1... c6 {[%clk 0:02:57.5]} 2. Nc3 {[%clk 0:02:59.5]}
2... d5 {[%clk 0:02:56.8]} 3. Nf3 {[%clk 0:02:58.2]} 3... Bg4 {[%clk 0:02:54.8]}
4. h3 {[%clk 0:02:58]} 4... Bxf3 {[%clk 0:02:54.3]} 5. Qxf3 {[%clk 0:02:58.6]}
5... Nf6 {[%clk 0:02:54.1]} 6. Be2 {[%clk 0:02:58.3]} 6... e6 {[%clk 0:02:52]}
7. O-O {[%clk 0:02:56.3]} 7... Bc5 {[%clk 0:02:51.2]} 8. Rd1 {[%clk 0:02:51.9]}
8... Bd4 {[%clk 0:02:48.1]} 9. d3 {[%clk 0:02:36.1]} 9... Nbd7 {[%clk
0:02:32.4]} 10. Bf4 {[%clk 0:02:27.4]} 10... Ne5 {[%clk 0:01:55.4]} 11. Qg3
{[%clk 0:02:17.9]} 11... Ng6 {[%clk 0:01:54.3]} 12. e5 {[%clk 0:02:08.9]} 12...
Nd7 {[%clk 0:01:51]} 13. Bh5 {[%clk 0:01:50.1]} 13... Nxf4 {[%clk 0:01:34.7]}
14. Qxf4 {[%clk 0:01:47.1]} 14... O-O {[%clk 0:01:33.7]} 15. Qxd4 {[%clk
0:01:46.2]} 15... Qg5 {[%clk 0:01:27]} 16. Be2 {[%clk 0:01:33.4]} 16... c5
{[%clk 0:01:13.3]} 17. Qe3 {[%clk 0:01:26.4]} 17... Qg6 {[%clk 0:01:03.9]} 18.
Qf4 {[%clk 0:01:21.6]} 18... f6 {[%clk 0:00:58.9]} 19. exf6 {[%clk 0:01:20.1]}
19... Rxf6 {[%clk 0:00:58.4]} 20. Qg4 {[%clk 0:01:17.2]} 20... Qf7 {[%clk
0:00:54.5]} 21. Rf1 {[%clk 0:01:09.7]} 21... Ne5 {[%clk 0:00:48.9]} 22. Qg3
{[%clk 0:01:08.2]} 22... Nc6 {[%clk 0:00:44.9]} 23. Rae1 {[%clk 0:01:05.8]}
23... Rf8 {[%clk 0:00:41.6]} 24. Bg4 {[%clk 0:01:01.3]} 24... Nd4 {[%clk
0:00:35.3]} 25. Bd1 {[%clk 0:01:00.9]} 25... Kh8 {[%clk 0:00:19.7]} 26. Ne2
{[%clk 0:00:54.4]} 26... Rg6 {[%clk 0:00:17.2]} 27. Qe3 {[%clk 0:00:33]} 27...
Nf3+ {[%clk 0:00:16.5]} 28. Kh1 {[%clk 0:00:33.5]} 28... Nxe1 {[%clk 0:00:16.3]}
29. Rxe1 {[%clk 0:00:34.2]} 29... Qxf2 {[%clk 0:00:16.2]} 30. Qxf2 {[%clk
0:00:32.7]} 30... Rxf2 {[%clk 0:00:16.1]} 31. Rg1 {[%clk 0:00:28.5]} 31... Kg8
{[%clk 0:00:14.1]} 32. d4 {[%clk 0:00:18.1]} 32... b6 {[%clk 0:00:11.8]} 33. c3
{[%clk 0:00:16.6]} 33... Kf7 {[%clk 0:00:11.2]} 34. b3 {[%clk 0:00:10.7]} 34...
Ke7 {[%clk 0:00:10.9]} 35. a4 {[%clk 0:00:10.2]} 35... Kd6 {[%clk 0:00:10.7]}
36. Nc1 {[%clk 0:00:09.6]} 36... Rd2 {[%clk 0:00:09.7]} 37. Bf3 {[%clk
0:00:09.1]} 37... cxd4 {[%clk 0:00:09.1]} 38. cxd4 {[%clk 0:00:09.2]} 38... Rxd4
{[%clk 0:00:08.6]} 39. Ne2 {[%clk 0:00:09.9]} 39... Rd2 {[%clk 0:00:07.8]} 40.
Nf4 {[%clk 0:00:10.2]} 40... Rf6 {[%clk 0:00:07.9]} 41. Nh5 {[%clk 0:00:09.6]}
41... Rf7 {[%clk 0:00:07.9]} 42. Rc1 {[%clk 0:00:06.7]} 42... g6 {[%clk
0:00:07.5]} 43. Ng3 {[%clk 0:00:06.5]} 43... Rc7 {[%clk 0:00:07.5]} 44. Re1
{[%clk 0:00:05.8]} 44... Rc3 {[%clk 0:00:06.8]} 45. Kh2 {[%clk 0:00:04.2]} 45...
e5 {[%clk 0:00:06.4]} 46. Bg4 {[%clk 0:00:03.8]} 46... h5 {[%clk 0:00:04.9]} 47.
Be2 {[%clk 0:00:03.5]} 47... Re3 {[%clk 0:00:03.4]} 48. Kg1 {[%clk 0:00:02.9]}
48... d4 {[%clk 0:00:03.3]} 49. Kf2 {[%clk 0:00:03]} 49... e4 {[%clk 0:00:01.8]}
50. Nf1 {[%clk 0:00:03.6]} 1-0

[Event "*** SCC Grand Prix: Titled Tuesday Blitz"]
[Site "Chess.com"]
[Date "2020.07.07"]
[Round "2"]
[White "Chernobay_Artem"]
[Black "Colchonero64"]
[Result "1-0"]
[WhiteElo "2609"]
[BlackElo "2948"]
[TimeControl "180+1"]
[EndTime "10:19:21 PDT"]
[Termination "Chernobay_Artem won on time"]

1. d4 {[%clk 0:02:56.6]} 1... f5 {[%clk 0:02:58.7]} 2. c4 {[%clk 0:02:56.3]}
2... Nf6 {[%clk 0:02:55.8]} 3. Nf3 {[%clk 0:02:54.6]} 3... e6 {[%clk 0:02:55.8]}
4. g3 {[%clk 0:02:48.2]} 4... Be7 {[%clk 0:02:53.7]} 5. Bg2 {[%clk 0:02:47.9]}
5... d5 {[%clk 0:02:51.8]} 6. O-O {[%clk 0:02:46.7]} 6... c6 {[%clk 0:02:51.8]}
7. b3 {[%clk 0:02:43.6]} 7... Ne4 {[%clk 0:02:51.5]} 8. Ba3 {[%clk 0:02:40.7]}
8... Nd7 {[%clk 0:02:45.5]} 9. Qc1 {[%clk 0:02:31.9]} 9... O-O {[%clk
0:02:32.7]} 10. Bxe7 {[%clk 0:02:28.9]} 10... Qxe7 {[%clk 0:02:33.6]} 11. Qa3
{[%clk 0:02:28.5]} 11... Qxa3 {[%clk 0:02:30.8]} 12. Nxa3 {[%clk 0:02:26.9]}
12... b6 {[%clk 0:02:31]} 13. Rfc1 {[%clk 0:02:19]} 13... Bb7 {[%clk 0:02:30.2]}
14. e3 {[%clk 0:02:11.7]} 14... Rac8 {[%clk 0:02:25.9]} 15. Rc2 {[%clk 0:02:01]}
15... Kf7 {[%clk 0:02:19.7]} 16. Rac1 {[%clk 0:01:59.1]} 16... Ke7 {[%clk
0:02:19.9]} 17. b4 {[%clk 0:01:34.1]} 17... g5 {[%clk 0:02:07.4]} 18. Ne1 {[%clk
0:01:26.6]} 18... h5 {[%clk 0:01:59.5]} 19. Nd3 {[%clk 0:01:21.3]} 19... a6
{[%clk 0:01:48.2]} 20. f3 {[%clk 0:00:55.7]} 20... Nef6 {[%clk 0:01:45.2]} 21.
Ne5 {[%clk 0:00:46.8]} 21... Nxe5 {[%clk 0:01:37.2]} 22. dxe5 {[%clk 0:00:47.7]}
22... Nd7 {[%clk 0:01:37.6]} 23. f4 {[%clk 0:00:47.9]} 23... c5 {[%clk
0:01:11.3]} 24. cxd5 {[%clk 0:00:44.6]} 24... exd5 {[%clk 0:01:04.9]} 25. Nc4
{[%clk 0:00:40.4]} 25... dxc4 {[%clk 0:00:59.5]} 26. Bxb7 {[%clk 0:00:40]} 26...
b5 {[%clk 0:00:52.7]} 27. Bxa6 {[%clk 0:00:36.1]} 27... Rb8 {[%clk 0:00:52.9]}
28. a4 {[%clk 0:00:33.4]} 28... bxa4 {[%clk 0:00:39.8]} 29. bxc5 {[%clk
0:00:32]} 29... Nxc5 {[%clk 0:00:39.4]} 30. Bxc4 {[%clk 0:00:31.1]} 30... Nb3
{[%clk 0:00:29.1]} 31. Rd1 {[%clk 0:00:18.7]} 31... Rfc8 {[%clk 0:00:23.9]} 32.
Bxb3 {[%clk 0:00:09.6]} 32... axb3 {[%clk 0:00:22.3]} 33. Rxc8 {[%clk
0:00:07.6]} 33... Rxc8 {[%clk 0:00:22]} 34. Rb1 {[%clk 0:00:08.2]} 34... Rb8
{[%clk 0:00:09.6]} 35. Kf2 {[%clk 0:00:08.2]} 35... Ke6 {[%clk 0:00:08.2]} 36.
Ke2 {[%clk 0:00:08.4]} 36... Kd5 {[%clk 0:00:06]} 37. Kd3 {[%clk 0:00:09]} 37...
g4 {[%clk 0:00:06.1]} 38. Rb2 {[%clk 0:00:08.3]} 38... h4 {[%clk 0:00:05.3]} 39.
gxh4 {[%clk 0:00:06.6]} 39... Rb7 {[%clk 0:00:05]} 40. h5 {[%clk 0:00:06.7]}
40... Rb8 {[%clk 0:00:05.1]} 41. h6 {[%clk 0:00:05.8]} 41... Rb7 {[%clk
0:00:04.5]} 42. Rb1 {[%clk 0:00:04.9]} 42... Rh7 {[%clk 0:00:02.8]} 43. Rxb3
{[%clk 0:00:05]} 43... Rxh6 {[%clk 0:00:03.2]} 44. Rb5+ {[%clk 0:00:05.4]} 44...
Kc6 {[%clk 0:00:03.5]} 45. Rb2 {[%clk 0:00:05.8]} 45... Kd5 {[%clk 0:00:02.6]}
46. Ra2 {[%clk 0:00:04.8]} 46... Rh3 {[%clk 0:00:01.3]} 47. Ra6 {[%clk
0:00:03.8]} 47... Kc5 {[%clk 0:00:01.2]} 48. Rf6 {[%clk 0:00:03.2]} 48... Rxh2
{[%clk 0:00:01.4]} 49. Rxf5 {[%clk 0:00:03.8]} 49... g3 {[%clk 0:00:01.9]} 50.
Rg5 {[%clk 0:00:04.2]} 50... g2 {[%clk 0:00:02.1]} 51. Ke4 {[%clk 0:00:04.5]}
51... Kc6 {[%clk 0:00:01.5]} 52. Rg6+ {[%clk 0:00:04.3]} 52... Kd7 {[%clk
0:00:01]} 53. Rg7+ {[%clk 0:00:04.8]} 1-0